[Event "Turkish Cup 2024"]
[Site "Denizli"]
[Date "2024.08.05"]
[Round "10"]
[White "Ekinci, Berkay"]
[Black "Sahin, Ata Sarp"]
[Result "1-0"]
[ECO "E21"]
[WhiteElo "1976"]
[BlackElo "1996"]
[Annotator "NA RC"]
[PlyCount "69"]
[EventDate "2024.08.01"]
[EventType "swiss"]
[EventCountry "TUR"]
[SourceTitle "playchess.com"]
[Source "ChessBase"]
[SourceQuality "1"]
[TimeControl "5400+30"]

1. d4 {[%emt 0:01:00]} Nf6 {[%emt 0:05:00]} 2. c4 {[%emt 0:00:30]} e6 {[%emt 0:00:30]} 3. Nc3 {[%emt 0:00:00]} Bb4 {[%emt 0:00:30]} 4. Nf3 {[%emt 0:00:00]} O-O {[%emt 0:00:30]} 5. Bg5 {[%emt 0:01:30]} c5 {[%emt 0:01:30]} 6. Rc1 {[%emt 0:05:30]} h6 {[%emt 0:01:30]} 7. Bxf6 {[%emt 0:01:30]} Qxf6 {[%emt 0:00:30]} 8. a3 {[%emt 0:02:30]} Bxc3+ {[%emt 0:00:30]} 9. Rxc3 {[%emt 0:00:30]} b6 {[%emt 0:01:30]} 10. dxc5 {[%emt 0:08:30]} bxc5 {[%emt 0:00:30]} 11. g3 {[%emt 0:00:30]} Nc6 {[%emt 0:00:00]} 12. Bg2 {[%emt 0:01:30]} Rb8 {[%emt 0:01:00]} 13. Qd2 {[%emt 0:06:30]} Ba6 {[%emt 0:01:30]} 14. O-O {[%emt 0:02:30]} Qe7 {[%emt 0:05:30]} 15. Rd1 {[%emt 0:03:30]} Rfd8 {[%emt 0:01:30]} 16. Qc2 {[%emt 0:01:30]} Rb6 {[%emt 0:00:30]} 17. e3 {[%emt 0:05:30]} Rdb8 {[%emt 0:04:30]} 18. b3 {[%emt 0:04:30]} Na5 {[%emt 0:00:30]} 19. Nd2 {[%emt 0:01:30]} Bb7 {[%emt 0:02:30]} 20. Bxb7 {[%emt 0:05:30]} R8xb7 {[%emt 0:00:30]} 21. Rd3 {[%emt 0:00:30]} Nc6 {[%emt 0:01:30]} 22. f4 {[%emt 0:09:30]} e5 {[%emt 0:03:30]} 23. Qc3 {[%emt 0:07:30]} exf4 {[%emt 0:00:30]} 24. gxf4 {[%emt 0:00:30]} Qh4 {[%emt 0:02:30]} 25. Kh1 {[%emt 0:03:30]} Qf2 {[%emt 0:02:30]} 26. Rg1 {[%emt 0:02:30]} f6 {[%emt 0:02:30]} 27. Qc1 {[%emt 0:02:30]} Qe2 {[%emt 0:04:30]} 28. Qc3 {[%emt 0:01:30]} Nd8 {[%emt 0:06:30]} 29. e4 {[%emt 0:02:40]} Kh7 {[%emt 0:02:30]} 30. Rdg3 {[%emt 0:06:00]} d6 {[%emt 0:02:30]} 31. e5 {[%emt 0:02:03]} dxe5 {[%emt 0:01:30]} 32. R3g2 {[%emt 0:01:38]} Qh5 {[%emt 0:00:30]} 33. Qd3+ {[%emt 0:00:29]} e4 {[%emt 0:02:30]} 34. Qxd8 {[%emt 0:02:39]} e3 {[%emt 0:00:30]} 35. Qd3+ {[%emt 0:00:20]} 1-0

[Event "Turkish Cup 2024"]
[Site "Denizli"]
[Date "2024.08.05"]
[Round "10"]
[White "Dargali, Hakan"]
[Black "Demirag, Batuhan"]
[Result "1-0"]
[ECO "B07"]
[WhiteElo "1973"]
[BlackElo "1912"]
[Annotator "NA RC"]
[PlyCount "163"]
[EventDate "2024.08.01"]
[EventType "swiss"]
[EventCountry "TUR"]
[SourceTitle "playchess.com"]
[Source "ChessBase"]
[SourceQuality "1"]
[TimeControl "5400+30"]

1. e4 {[%emt 0:03:00]} d6 {[%emt 0:01:00]} 2. d4 {[%emt 0:00:30]} Nf6 {[%emt 0:00:30]} 3. f3 {[%emt 0:00:30]} e5 {[%emt 0:03:30]} 4. dxe5 {[%emt 0:00:00]} dxe5 {[%emt 0:00:30]} 5. Qxd8+ {[%emt 0:00:00]} Kxd8 {[%emt 0:00:00]} 6. Be3 {[%emt 0:00:30]} Be6 {[%emt 0:02:00]} 7. Nd2 {[%emt 0:00:00]} Nbd7 {[%emt 0:01:30]} 8. Bc4 {[%emt 0:04:00]} Bd6 {[%emt 0:02:30]} 9. g4 {[%emt 0:03:30]} h6 {[%emt 0:00:30]} 10. Ne2 {[%emt 0:00:30]} Ke7 {[%emt 0:03:30]} 11. Ng3 {[%emt 0:01:30]} Nb6 {[%emt 0:03:30]} 12. Be2 {[%emt 0:01:30]} Nfd7 {[%emt 0:02:30]} 13. Nf5+ {[%emt 0:00:30]} Bxf5 {[%emt 0:01:30]} 14. gxf5 {[%emt 0:00:30]} Bc5 {[%emt 0:02:30]} 15. Kf2 {[%emt 0:03:30]} Rad8 {[%emt 0:03:30]} 16. Rhg1 {[%emt 0:03:30]} Kf6 {[%emt 0:01:30]} 17. Nf1 {[%emt 0:09:30]} g6 {[%emt 0:06:30]} 18. fxg6 {[%emt 0:01:30]} fxg6 {[%emt 0:00:30]} 19. Rd1 {[%emt 0:01:30]} h5 {[%emt 0:02:30]} 20. b4 {[%emt 0:09:30]} Bxe3+ {[%emt 0:00:30]} 21. Nxe3 {[%emt 0:00:30]} Nb8 {[%emt 0:06:30]} 22. c4 {[%emt 0:01:30]} c6 {[%emt 0:02:30]} 23. c5 {[%emt 0:09:30]} Na8 {[%emt 0:00:30]} 24. Nc4 {[%emt 0:00:30]} Nc7 {[%emt 0:00:30]} 25. Na5 {[%emt 0:03:30]} b6 {[%emt 0:01:30]} 26. Nb7 {[%emt 0:00:30]} Rd4 {[%emt 0:02:30]} 27. Rxd4 {[%emt 0:04:30]} exd4 {[%emt 0:00:30]} 28. e5+ {[%emt 0:03:30]} Kxe5 {[%emt 0:01:30]} 29. Rxg6 {[%emt 0:01:30]} d3 {[%emt 0:06:30]} 30. Bxd3 {[%emt 0:02:30]} Kd4 {[%emt 0:00:00]} 31. Be4 {[%emt 0:01:30]} Kc3 {[%emt 0:00:00]} 32. cxb6 {[%emt 0:00:30]} axb6 {[%emt 0:00:30]} 33. Bxc6 {[%emt 0:00:30]} Kxb4 {[%emt 0:00:30]} 34. Be4 {[%emt 0:00:00]} b5 {[%emt 0:00:30]} 35. f4 {[%emt 0:01:00]} Ka3 {[%emt 0:00:30]} 36. f5 {[%emt 0:02:30]} Kxa2 {[%emt 0:01:30]} 37. f6 {[%emt 0:00:30]} Nd7 {[%emt 0:00:30]} 38. Nd6 {[%emt 0:01:30]} Ne5 {[%emt 0:01:30]} 39. Rg7 {[%emt 0:00:30]} Ng4+ {[%emt 0:00:30]} 40. Ke2 {[%emt 0:09:31]} Nxf6 {[%emt 0:00:30]} 41. Rxc7 {[%emt 0:00:05]} Nxe4 {[%emt 0:02:30]} 42. Ra7+ {[%emt 0:01:39]} Kb3 {[%emt 0:01:30]} 43. Nxe4 {[%emt 0:00:06]} Rg8 {[%emt 0:03:30]} 44. h3 {[%emt 0:03:04]} Kc4 {[%emt 0:03:30]} 45. Ke3 {[%emt 0:00:43]} Rg1 {[%emt 0:00:30]} 46. Rh7 {[%emt 0:01:56]} Re1+ {[%emt 0:00:30]} 47. Kf3 {[%emt 0:00:17]} Kd4 {[%emt 0:03:30]} 48. Rd7+ {[%emt 0:00:50]} Ke5 {[%emt 0:00:30]} 49. Nc3 {[%emt 0:03:26]} Rf1+ {[%emt 0:12:11]} 50. Kg2 {[%emt 0:00:33]} Rc1 {[%emt 0:01:01]} 51. Nxb5 {[%emt 0:00:14]} Kf4 {[%emt 0:00:36]} 52. Nd4 {[%emt 0:00:50]} Ra1 {[%emt 0:00:59]} 53. Re7 {[%emt 0:00:56]} Ra2+ {[%emt 0:03:18]} 54. Ne2+ {[%emt 0:00:30]} Kg5 {[%emt 0:00:00]} 55. Re5+ {[%emt 0:00:50]} Kh4 {[%emt 0:00:39]} 56. Re4+ {[%emt 0:00:05]} Kg5 {[%emt 0:00:00]} 57. Kf3 {[%emt 0:01:38]} Ra3+ {[%emt 0:00:39]} 58. Re3 {[%emt 0:00:06]} Ra4 {[%emt 0:01:59]} 59. Ng3 {[%emt 0:00:34]} Kh4 {[%emt 0:02:04]} 60. Kg2 {[%emt 0:00:34]} Ra2+ {[%emt 0:00:35]} 61. Re2 {[%emt 0:00:11]} Ra4 {[%emt 0:00:22]} 62. Kh2 {[%emt 0:01:16]} Rb4 {[%emt 0:01:47]} 63. Nh1 {[%emt 0:01:12]} Ra4 {[%emt 0:01:36]} 64. Nf2 {[%emt 0:00:58]} Rb4 {[%emt 0:01:42]} 65. Nd3 {[%emt 0:00:15]} Ra4 {[%emt 0:02:08]} 66. Rb2 {[%emt 0:00:43]} Kg5 {[%emt 0:01:16]} 67. Rb5+ {[%emt 0:00:07]} Kh6 {[%emt 0:00:00]} 68. Rd5 {[%emt 0:00:22]} Rc4 {[%emt 0:01:06]} 69. Kg3 {[%emt 0:00:10]} Rc3 {[%emt 0:01:03]} 70. Kf4 {[%emt 0:00:52]} Rc4+ {[%emt 0:01:12]} 71. Kf5 {[%emt 0:00:10]} Ra4 {[%emt 0:00:34]} 72. Nf4 {[%emt 0:00:18]} Ra1 {[%emt 0:01:38]} 73. Rd6+ {[%emt 0:00:10]} Kh7 {[%emt 0:00:00]} 74. Kg5 {[%emt 0:00:18]} Rg1+ {[%emt 0:00:44]} 75. Kxh5 {[%emt 0:00:07]} Ra1 {[%emt 0:01:19]} 76. Rd7+ {[%emt 0:00:08]} Kg8 {[%emt 0:00:17]} 77. h4 {[%emt 0:00:10]} Ra6 {[%emt 0:00:15]} 78. Kg4 {[%emt 0:00:16]} Rg6+ {[%emt 0:00:53]} 79. Kf5 {[%emt 0:00:05]} Ra6 {[%emt 0:00:00]} 80. Ne6 {[%emt 0:00:55]} Kh8 {[%emt 0:00:49]} 81. h5 {[%emt 0:00:08]} Ra1 {[%emt 0:00:37]} 82. Kg6 {[%emt 0:00:14]} 1-0

[Event "Turkish Cup 2024"]
[Site "Denizli"]
[Date "2024.08.05"]
[Round "10"]
[White "Cicek, Bilal Emre"]
[Black "Arslan, Levent"]
[Result "1-0"]
[ECO "A21"]
[WhiteElo "1963"]
[BlackElo "1778"]
[Annotator "NA RC"]
[PlyCount "79"]
[EventDate "2024.08.01"]
[EventType "swiss"]
[EventCountry "TUR"]
[SourceTitle "playchess.com"]
[Source "ChessBase"]
[SourceQuality "1"]
[TimeControl "5400+30"]

1. c4 {[%emt 0:01:00]} e5 {[%emt 0:02:00]} 2. g3 {[%emt 0:00:00]} d6 {[%emt 0:00:30]} 3. Bg2 {[%emt 0:00:00]} f5 {[%emt 0:00:00]} 4. Nc3 {[%emt 0:00:00]} Nf6 {[%emt 0:00:00]} 5. e3 {[%emt 0:00:00]} Be7 {[%emt 0:00:30]} 6. Nge2 {[%emt 0:00:30]} O-O {[%emt 0:01:30]} 7. O-O {[%emt 0:00:30]} c6 {[%emt 0:02:30]} 8. b4 {[%emt 0:06:30]} d5 {[%emt 0:07:30]} 9. cxd5 {[%emt 0:01:30]} cxd5 {[%emt 0:01:30]} 10. Qb3 {[%emt 0:00:30]} Be6 {[%emt 0:00:30]} 11. f4 {[%emt 0:09:30]} e4 {[%emt 0:02:30]} 12. Nd4 {[%emt 0:01:30]} Bf7 {[%emt 0:03:30]} 13. Na4 {[%emt 0:02:30]} Nc6 {[%emt 0:04:30]} 14. Bb2 {[%emt 0:11:30]} Nxd4 {[%emt 0:22:30]} 15. Bxd4 {[%emt 0:00:30]} b6 {[%emt 0:00:00]} 16. Rfc1 {[%emt 0:01:30]} Qd7 {[%emt 0:01:00]} 17. Bf1 {[%emt 0:04:30]} Ne8 {[%emt 0:10:30]} 18. Nc3 {[%emt 0:06:30]} Nd6 {[%emt 0:08:30]} 19. a4 {[%emt 0:11:30]} Nc4 {[%emt 0:04:30]} 20. Bxc4 {[%emt 0:02:30]} dxc4 {[%emt 0:00:30]} 21. Qb2 {[%emt 0:00:00]} Be6 {[%emt 0:05:30]} 22. b5 {[%emt 0:04:00]} g5 {[%emt 0:04:41]} 23. Ne2 {[%emt 0:03:30]} g4 {[%emt 0:08:44]} 24. a5 {[%emt 0:00:30]} Qb7 {[%emt 0:02:39]} 25. Ra4 {[%emt 0:02:30]} Bd8 {[%emt 0:00:45]} 26. axb6 {[%emt 0:00:30]} Bxb6 {[%emt 0:00:34]} 27. Rca1 {[%emt 0:00:30]} Bxd4 {[%emt 0:01:14]} 28. Nxd4 {[%emt 0:00:00]} Bd5 {[%emt 0:00:27]} 29. Ra6 {[%emt 0:01:00]} Qg7 {[%emt 0:02:41]} 30. Qa3 {[%emt 0:03:30]} c3 {[%emt 0:02:38]} 31. dxc3 {[%emt 0:02:30]} Qc7 {[%emt 0:00:36]} 32. Qd6 {[%emt 0:00:30]} Qc4 {[%emt 0:00:57]} 33. R6a4 {[%emt 0:01:30]} Rad8 {[%emt 0:00:18]} 34. Qxf8+ {[%emt 0:01:30]} Rxf8 {[%emt 0:00:35]} 35. Rxc4 {[%emt 0:00:30]} Bxc4 {[%emt 0:00:29]} 36. Rxa7 {[%emt 0:00:00]} Rf6 {[%emt 0:00:11]} 37. Ra6 {[%emt 0:00:00]} Rf7 {[%emt 0:00:54]} 38. Ra4 {[%emt 0:00:30]} Bd3 {[%emt 0:00:18]} 39. b6 {[%emt 0:00:30]} Rb7 {[%emt 0:00:00]} 40. Ra8+ {[%emt 0:00:00]} 1-0

[Event "Turkish Cup 2024"]
[Site "Denizli"]
[Date "2024.08.05"]
[Round "10"]
[White "Yildiz, Talat"]
[Black "Bulgurlu, Okan"]
[Result "1-0"]
[ECO "B01"]
[WhiteElo "1956"]
[BlackElo "1964"]
[Annotator "NA RC"]
[PlyCount "43"]
[EventDate "2024.08.01"]
[EventType "swiss"]
[EventCountry "TUR"]
[SourceTitle "playchess.com"]
[Source "ChessBase"]
[SourceQuality "1"]
[TimeControl "5400+30"]

1. e4 {[%emt 0:05:00]} d5 {[%emt 0:01:00]} 2. exd5 {[%emt 0:00:30]} Qxd5 {[%emt 0:00:00]} 3. Nc3 {[%emt 0:00:30]} Qd6 {[%emt 0:00:00]} 4. d4 {[%emt 0:00:30]} c6 {[%emt 0:00:00]} 5. Nf3 {[%emt 0:00:00]} Bg4 {[%emt 0:00:00]} 6. h3 {[%emt 0:10:00]} Bxf3 {[%emt 0:00:00]} 7. Qxf3 {[%emt 0:00:00]} Qxd4 {[%emt 0:01:00]} 8. Be3 {[%emt 0:01:00]} Qf6 {[%emt 0:06:30]} 9. Qg3 {[%emt 0:02:30]} Qd6 {[%emt 0:01:30]} 10. Bf4 {[%emt 0:03:30]} Qe6+ {[%emt 0:00:30]} 11. Be2 {[%emt 0:00:30]} Nd7 {[%emt 0:00:00]} 12. O-O-O {[%emt 0:03:30]} Qg6 {[%emt 0:30:00]} 13. Qe3 {[%emt 0:12:30]} e6 {[%emt 0:09:30]} 14. Rxd7 {[%emt 0:23:30]} Kxd7 {[%emt 0:00:30]} 15. Rd1+ {[%emt 0:00:30]} Ke8 {[%emt 0:23:30]} 16. Nb5 {[%emt 0:01:30]} Be7 {[%emt 0:21:18]} 17. Nc7+ {[%emt 0:01:30]} Kf8 {[%emt 0:00:03]} 18. Nxa8 {[%emt 0:00:00]} Nf6 {[%emt 0:00:04]} 19. Qxa7 {[%emt 0:01:00]} Qe4 {[%emt 0:00:50]} 20. Qb8+ {[%emt 0:01:30]} Ne8 {[%emt 0:00:03]} 21. Bf3 {[%emt 0:01:30]} Qa4 {[%emt 0:01:28]} 22. Nb6 {[%emt 0:00:30]} 1-0

[Event "Turkish Cup 2024"]
[Site "Denizli"]
[Date "2024.08.05"]
[Round "10"]
[White "Hatirli, Ugur Can"]
[Black "Celik, Ege Yigit"]
[Result "1-0"]
[ECO "E19"]
[WhiteElo "1948"]
[BlackElo "1949"]
[Annotator "NA RC"]
[PlyCount "93"]
[EventDate "2024.08.01"]
[EventType "swiss"]
[EventCountry "TUR"]
[SourceTitle "playchess.com"]
[Source "ChessBase"]
[SourceQuality "1"]
[TimeControl "5400+30"]

1. d4 {[%emt 0:01:00]} Nf6 {[%emt 0:01:00]} 2. Nf3 {[%emt 0:00:00]} e6 {[%emt 0:02:30]} 3. g3 {[%emt 0:01:00]} b6 {[%emt 0:00:30]} 4. Bg2 {[%emt 0:00:30]} Bb7 {[%emt 0:00:30]} 5. O-O {[%emt 0:00:30]} Be7 {[%emt 0:00:00]} 6. c4 {[%emt 0:00:30]} O-O {[%emt 0:01:00]} 7. Nc3 {[%emt 0:00:00]} Ne4 {[%emt 0:00:00]} 8. Qc2 {[%emt 0:01:00]} Nxc3 {[%emt 0:00:00]} 9. Qxc3 {[%emt 0:01:30]} d6 {[%emt 0:00:30]} 10. Rd1 {[%emt 0:03:30]} f5 {[%emt 0:11:30]} 11. Qe3 {[%emt 0:14:30]} Qc8 {[%emt 0:01:30]} 12. Bd2 {[%emt 0:07:30]} Bf6 {[%emt 0:16:30]} 13. Bc3 {[%emt 0:01:30]} Be4 {[%emt 0:00:30]} 14. h4 {[%emt 0:04:30]} Qe8 {[%emt 0:12:30]} 15. Ne1 {[%emt 0:06:30]} Bxg2 {[%emt 0:00:30]} 16. Nxg2 {[%emt 0:00:30]} Nc6 {[%emt 0:06:30]} 17. d5 {[%emt 0:10:30]} Nd8 {[%emt 0:01:30]} 18. dxe6 {[%emt 0:05:30]} Nxe6 {[%emt 0:01:30]} 19. Bxf6 {[%emt 0:02:30]} Rxf6 {[%emt 0:00:00]} 20. Qf3 {[%emt 0:01:30]} a5 {[%emt 0:07:00]} 21. Rd5 {[%emt 0:02:30]} Qf8 {[%emt 0:01:30]} 22. e3 {[%emt 0:01:30]} Re8 {[%emt 0:01:30]} 23. Rad1 {[%emt 0:03:30]} g6 {[%emt 0:02:30]} 24. R5d2 {[%emt 0:01:30]} Qe7 {[%emt 0:05:30]} 25. Qc6 {[%emt 0:01:30]} h6 {[%emt 0:00:30]} 26. Qd5 {[%emt 0:00:30]} Qf7 {[%emt 0:00:30]} 27. a3 {[%emt 0:03:30]} Nc5 {[%emt 0:10:46]} 28. b4 {[%emt 0:00:30]} Qxd5 {[%emt 0:00:18]} 29. cxd5 {[%emt 0:00:30]} Na6 {[%emt 0:02:32]} 30. Rd4 {[%emt 0:05:30]} axb4 {[%emt 0:05:06]} 31. axb4 {[%emt 0:00:30]} g5 {[%emt 0:00:30]} 32. Ra1 {[%emt 0:00:30]} Nb8 {[%emt 0:00:30]} 33. Ra8 {[%emt 0:00:30]} Kf8 {[%emt 0:00:30]} 34. Rc4 {[%emt 0:00:30]} Rc8 {[%emt 0:00:00]} 35. hxg5 {[%emt 0:05:37]} hxg5 {[%emt 0:00:00]} 36. Ne1 {[%emt 0:00:14]} b5 {[%emt 0:04:18]} 37. Rc3 {[%emt 0:01:08]} Ke7 {[%emt 0:02:18]} 38. Nf3 {[%emt 0:00:43]} Rff8 {[%emt 0:00:33]} 39. Ra7 {[%emt 0:01:52]} Kf6 {[%emt 0:01:48]} 40. Rcxc7 {[%emt 0:02:04]} Rxc7 {[%emt 0:00:30]} 41. Rxc7 {[%emt 0:00:00]} Na6 {[%emt 0:00:08]} 42. Rc6 {[%emt 0:00:16]} Nxb4 {[%emt 0:00:30]} 43. Rxd6+ {[%emt 0:00:30]} Ke7 {[%emt 0:00:30]} 44. Re6+ {[%emt 0:00:30]} Kd7 {[%emt 0:00:30]} 45. Ne5+ {[%emt 0:00:30]} Kc7 {[%emt 0:00:00]} 46. d6+ {[%emt 0:00:00]} Kd8 {[%emt 0:00:00]} 47. Re7 {[%emt 0:00:16]} 1-0

[Event "Turkish Cup 2024"]
[Site "Denizli"]
[Date "2024.08.05"]
[Round "10"]
[White "Yardimci, Can"]
[Black "Sozat, Arda"]
[Result "1-0"]
[ECO "B43"]
[WhiteElo "1930"]
[BlackElo "1836"]
[Annotator "NA RC"]
[PlyCount "71"]
[EventDate "2024.08.01"]
[EventType "swiss"]
[EventCountry "TUR"]
[SourceTitle "playchess.com"]
[Source "ChessBase"]
[SourceQuality "1"]
[TimeControl "5400+30"]

1. e4 {[%emt 0:01:00]} c5 {[%emt 0:02:00]} 2. Nf3 {[%emt 0:00:30]} e6 {[%emt 0:00:30]} 3. d4 {[%emt 0:00:00]} cxd4 {[%emt 0:00:30]} 4. Nxd4 {[%emt 0:00:00]} a6 {[%emt 0:00:30]} 5. Nc3 {[%emt 0:00:30]} b5 {[%emt 0:00:30]} 6. Bd3 {[%emt 0:00:30]} Bb7 {[%emt 0:00:30]} 7. O-O {[%emt 0:00:30]} Nc6 {[%emt 0:00:30]} 8. Nxc6 {[%emt 0:00:30]} Bxc6 {[%emt 0:00:30]} 9. Re1 {[%emt 0:00:30]} Ne7 {[%emt 0:00:00]} 10. Qg4 {[%emt 0:03:30]} b4 {[%emt 0:02:00]} 11. Ne2 {[%emt 0:02:30]} Ng6 {[%emt 0:00:30]} 12. Nd4 {[%emt 0:03:30]} h5 {[%emt 0:30:30]} 13. Qe2 {[%emt 0:05:30]} Bc5 {[%emt 0:12:30]} 14. Nxc6 {[%emt 0:05:30]} dxc6 {[%emt 0:00:00]} 15. e5 {[%emt 0:02:30]} Ne7 {[%emt 0:03:00]} 16. Bxa6 {[%emt 0:05:30]} Bxf2+ {[%emt 0:02:30]} 17. Qxf2 {[%emt 0:05:30]} Rxa6 {[%emt 0:00:30]} 18. Be3 {[%emt 0:07:30]} Nd5 {[%emt 0:22:30]} 19. Bc5 {[%emt 0:01:30]} h4 {[%emt 0:00:30]} 20. a3 {[%emt 0:09:30]} Qa8 {[%emt 0:04:18]} 21. Rf1 {[%emt 0:03:30]} f5 {[%emt 0:06:38]} 22. exf6 {[%emt 0:00:30]} gxf6 {[%emt 0:00:17]} 23. Rae1 {[%emt 0:02:30]} Kf7 {[%emt 0:02:44]} 24. axb4 {[%emt 0:02:30]} h3 {[%emt 0:06:04]} 25. g3 {[%emt 0:01:30]} Rh5 {[%emt 0:01:31]} 26. Qe2 {[%emt 0:01:30]} Rg5 {[%emt 0:01:17]} 27. Qxe6+ {[%emt 0:00:30]} Kg6 {[%emt 0:00:07]} 28. c4 {[%emt 0:00:30]} Qb8 {[%emt 0:00:37]} 29. cxd5 {[%emt 0:00:30]} Rxg3+ {[%emt 0:00:48]} 30. Kh1 {[%emt 0:00:30]} cxd5 {[%emt 0:00:59]} 31. Rxf6+ {[%emt 0:00:30]} Kg7 {[%emt 0:00:00]} 32. Qf7+ {[%emt 0:00:30]} Kh8 {[%emt 0:00:00]} 33. Re8+ {[%emt 0:00:30]} Qxe8 {[%emt 0:00:13]} 34. Qxe8+ {[%emt 0:00:00]} Rg8 {[%emt 0:00:00]} 35. Qh5+ {[%emt 0:00:00]} Kg7 {[%emt 0:00:18]} 36. Qh6# {[%emt 0:00:00]} 1-0

[Event "Turkish Cup 2024"]
[Site "Denizli"]
[Date "2024.08.05"]
[Round "10"]
[White "Tirpan, Ceren"]
[Black "Yasin, Hur"]
[Result "1-0"]
[ECO "E17"]
[WhiteElo "1926"]
[BlackElo "1879"]
[Annotator "NA RC"]
[PlyCount "117"]
[EventDate "2024.08.01"]
[EventType "swiss"]
[EventCountry "TUR"]
[SourceTitle "playchess.com"]
[Source "ChessBase"]
[SourceQuality "1"]
[TimeControl "5400+30"]

1. c4 {[%emt 0:01:00]} e6 {[%emt 0:01:00]} 2. g3 {[%emt 0:00:00]} d5 {[%emt 0:00:30]} 3. Bg2 {[%emt 0:00:00]} Nf6 {[%emt 0:00:30]} 4. Nf3 {[%emt 0:00:00]} Be7 {[%emt 0:00:30]} 5. O-O {[%emt 0:01:00]} O-O {[%emt 0:00:00]} 6. b3 {[%emt 0:00:00]} b6 {[%emt 0:02:00]} 7. Bb2 {[%emt 0:02:00]} Bb7 {[%emt 0:00:30]} 8. cxd5 {[%emt 0:02:30]} Bxd5 {[%emt 0:03:30]} 9. Nc3 {[%emt 0:03:30]} Bb7 {[%emt 0:00:30]} 10. d4 {[%emt 0:05:30]} c5 {[%emt 0:01:30]} 11. dxc5 {[%emt 0:07:30]} Bxc5 {[%emt 0:00:30]} 12. Qc2 {[%emt 0:00:30]} Nbd7 {[%emt 0:04:30]} 13. Rad1 {[%emt 0:10:30]} Qc7 {[%emt 0:00:30]} 14. Qb1 {[%emt 0:00:30]} Rac8 {[%emt 0:02:30]} 15. Nb5 {[%emt 0:14:30]} Qb8 {[%emt 0:00:30]} 16. Ng5 {[%emt 0:15:30]} Rfd8 {[%emt 0:04:30]} 17. Bxb7 {[%emt 0:01:30]} Qxb7 {[%emt 0:00:30]} 18. Nd6 {[%emt 0:00:30]} Bxd6 {[%emt 0:02:30]} 19. Rxd6 {[%emt 0:00:30]} h6 {[%emt 0:00:30]} 20. Nf3 {[%emt 0:00:30]} Qc7 {[%emt 0:00:30]} 21. Rd2 {[%emt 0:03:30]} Nc5 {[%emt 0:03:30]} 22. Rc2 {[%emt 0:01:30]} Qb7 {[%emt 0:00:30]} 23. Rfc1 {[%emt 0:02:30]} Nce4 {[%emt 0:00:30]} 24. Nd4 {[%emt 0:01:30]} Rxc2 {[%emt 0:02:30]} 25. Qxc2 {[%emt 0:01:30]} Nd6 {[%emt 0:06:30]} 26. Qc7 {[%emt 0:09:26]} Qxc7 {[%emt 0:00:30]} 27. Rxc7 {[%emt 0:00:30]} Rd7 {[%emt 0:00:30]} 28. Rxd7 {[%emt 0:01:07]} Nxd7 {[%emt 0:00:30]} 29. f3 {[%emt 0:00:28]} a5 {[%emt 0:03:30]} 30. Ba3 {[%emt 0:00:47]} Nb7 {[%emt 0:00:30]} 31. Kf2 {[%emt 0:00:59]} g6 {[%emt 0:04:30]} 32. Ke3 {[%emt 0:00:23]} Nbc5 {[%emt 0:01:30]} 33. Nc6 {[%emt 0:01:47]} a4 {[%emt 0:06:30]} 34. Bxc5 {[%emt 0:00:54]} Nxc5 {[%emt 0:00:30]} 35. b4 {[%emt 0:00:09]} Nb7 {[%emt 0:11:30]} 36. Ne7+ {[%emt 0:01:40]} Kf8 {[%emt 0:01:30]} 37. Nc8 {[%emt 0:00:09]} b5 {[%emt 0:02:30]} 38. Kd4 {[%emt 0:00:22]} Ke8 {[%emt 0:02:30]} 39. Na7 {[%emt 0:00:47]} Kd7 {[%emt 0:07:30]} 40. Nxb5 {[%emt 0:00:22]} Kc6 {[%emt 0:01:30]} 41. Nc3 {[%emt 0:00:30]} Nd6 {[%emt 0:00:30]} 42. a3 {[%emt 0:00:17]} f6 {[%emt 0:00:30]} 43. f4 {[%emt 0:00:40]} g5 {[%emt 0:04:30]} 44. e4 {[%emt 0:01:15]} gxf4 {[%emt 0:00:30]} 45. gxf4 {[%emt 0:00:07]} Nf7 {[%emt 0:01:58]} 46. Nxa4 {[%emt 0:00:30]} e5+ {[%emt 0:00:17]} 47. fxe5 {[%emt 0:02:29]} Nxe5 {[%emt 0:00:09]} 48. h3 {[%emt 0:00:20]} Nf3+ {[%emt 0:05:44]} 49. Ke3 {[%emt 0:00:30]} Ne1 {[%emt 0:00:00]} 50. Nc3 {[%emt 0:00:28]} Nc2+ {[%emt 0:04:46]} 51. Kf4 {[%emt 0:00:35]} Nxa3 {[%emt 0:00:39]} 52. Kf5 {[%emt 0:00:00]} Nc4 {[%emt 0:02:24]} 53. Kxf6 {[%emt 0:00:00]} Kd6 {[%emt 0:01:14]} 54. Nb5+ {[%emt 0:00:21]} Kd7 {[%emt 0:01:21]} 55. e5 {[%emt 0:00:06]} Kc6 {[%emt 0:00:45]} 56. Nc3 {[%emt 0:00:33]} Kd7 {[%emt 0:04:49]} 57. e6+ {[%emt 0:00:45]} Ke8 {[%emt 0:00:30]} 58. Ne4 {[%emt 0:00:00]} Kd8 {[%emt 0:00:41]} 59. b5 {[%emt 0:00:00]} 1-0

[Event "Turkish Cup 2024"]
[Site "Denizli"]
[Date "2024.08.05"]
[Round "10"]
[White "Cetindag, Alper"]
[Black "Celebi, Mehmet Alper"]
[Result "1/2-1/2"]
[ECO "B45"]
[WhiteElo "1923"]
[BlackElo "1998"]
[Annotator "NA RC"]
[PlyCount "68"]
[EventDate "2024.08.01"]
[EventType "swiss"]
[EventCountry "TUR"]
[SourceTitle "playchess.com"]
[Source "ChessBase"]
[SourceQuality "1"]
[TimeControl "5400+30"]

1. e4 {[%emt 0:01:00]} c5 {[%emt 0:01:00]} 2. Nf3 {[%emt 0:00:30]} e6 {[%emt 0:00:30]} 3. d4 {[%emt 0:00:00]} cxd4 {[%emt 0:00:00]} 4. Nxd4 {[%emt 0:00:00]} Nf6 {[%emt 0:00:00]} 5. Nc3 {[%emt 0:00:00]} Nc6 {[%emt 0:00:30]} 6. Ndb5 {[%emt 0:00:00]} Bb4 {[%emt 0:00:30]} 7. a3 {[%emt 0:00:00]} Bxc3+ {[%emt 0:00:30]} 8. Nxc3 {[%emt 0:00:00]} d5 {[%emt 0:00:30]} 9. exd5 {[%emt 0:00:00]} exd5 {[%emt 0:00:30]} 10. Bd3 {[%emt 0:00:00]} O-O {[%emt 0:00:00]} 11. O-O {[%emt 0:00:30]} h6 {[%emt 0:00:00]} 12. Bf4 {[%emt 0:04:30]} Be6 {[%emt 0:11:30]} 13. Re1 {[%emt 0:02:30]} a6 {[%emt 0:00:30]} 14. Qd2 {[%emt 0:01:30]} Ne7 {[%emt 0:06:30]} 15. Rad1 {[%emt 0:06:30]} Re8 {[%emt 0:06:30]} 16. h3 {[%emt 0:06:30]} Qb6 {[%emt 0:09:30]} 17. Be5 {[%emt 0:14:30]} Nd7 {[%emt 0:05:30]} 18. Bd4 {[%emt 0:04:30]} Qd6 {[%emt 0:01:30]} 19. Be3 {[%emt 0:11:30]} Ne5 {[%emt 0:06:30]} 20. Bf4 {[%emt 0:02:30]} f6 {[%emt 0:02:30]} 21. Qe2 {[%emt 0:01:30]} N7c6 {[%emt 0:02:30]} 22. Bg6 {[%emt 0:03:30]} Red8 {[%emt 0:09:30]} 23. Be4 {[%emt 0:03:30]} Qc5 {[%emt 0:01:30]} 24. Bf3 {[%emt 0:03:30]} Kh8 {[%emt 0:07:30]} 25. Na4 {[%emt 0:03:30]} Qa7 {[%emt 0:02:30]} 26. b4 {[%emt 0:09:30]} Nd4 {[%emt 0:01:30]} 27. Rxd4 {[%emt 0:00:30]} Qxd4 {[%emt 0:02:30]} 28. Bxe5 {[%emt 0:00:30]} fxe5 {[%emt 0:00:00]} 29. Qxe5 {[%emt 0:01:30]} Qxe5 {[%emt 0:01:00]} 30. Rxe5 {[%emt 0:00:00]} Bg8 {[%emt 0:01:30]} 31. Nb6 {[%emt 0:01:00]} Re8 {[%emt 0:00:00]} 32. Rxe8 {[%emt 0:02:05]} Rxe8 {[%emt 0:00:00]} 33. Nxd5 {[%emt 0:01:33]} Bh7 {[%emt 0:05:38]} 34. Ne3 {[%emt 0:03:02]} Be4 {[%emt 0:00:35]} 1/2-1/2